bitfinex/quotes_SOLUSD_20240808
["timestamp","ask_amount","ask_price","bid_price","bid_amount"]
[1723090818160,20.0,154.45,154.41,22.0533]
[1723090819666,20.0,154.46,154.41,22.0533]
[1723090820249,0.17,154.47,154.41,22.0533]
[1723090820468,20.17,154.48,154.41,22.0533]
[1723090820780,13.26289185,154.5,154.42,1.16384823]
[1723090821149,13.26289185,154.5,154.41,22.0533]
[1723090821645,19.73559185,154.5,154.41,22.0533]
[1723090821854,6.4735,154.48,154.41,22.0533]
[1723090822144,28.25,154.49,154.41,22.0533]
[1723090822145,0.17,154.49,154.41,22.0533]
[1723090822344,20.0,154.49,154.41,22.0533]
[1723090822573,20.17,154.49,154.41,22.0533]
[1723090823448,0.17,154.48,154.41,22.0533]
[1723090823650,0.34,154.48,154.41,22.0533]
[1723090825179,20.0,154.49,154.41,22.0533]
[1723090825482,35.0633,154.48,154.41,22.0533]
[1723090825650,65.0,154.47,154.41,22.0533]
[1723090825978,20.0,154.47,154.41,22.0533]
[1723090826450,20.0,154.49,154.41,22.0533]
[1723090826645,0.17,154.48,154.41,22.0533]
[1723090826852,20.0,154.49,154.41,22.0533]
[1723090827156,0.17,154.48,154.41,22.0533]
[1723090827869,0.34,154.48,154.41,22.0533]
[1723090828174,417.35,154.57,154.44,44.399]
[1723090828365,28.25,154.57,154.45,45.0]
[1723090828556,34.7207,154.55,154.44,16.149]
[1723090828872,28.25,154.53,154.44,16.149]
[1723090829171,33.85032326,154.58,154.46,50.0304]
[1723090829478,14.61247134,154.58,154.5,28.25]
[1723090829656,14.61247134,154.58,154.51,15.7883]
[1723090830781,20.0,154.57,154.51,15.7883]
[1723090831075,417.35,154.64,154.53,6.3589]
[1723090831282,34.7174,154.62,154.53,6.3589]
[1723090831470,28.25,154.62,154.53,6.3589]
[1723090831658,28.25,154.6,154.53,6.3589]
[1723090832075,28.25,154.58,154.53,6.3589]
[1723090832257,34.7195,154.58,154.53,6.3589]
[1723090832457,0.17,154.57,154.53,6.3589]
[1723090832752,65.34,154.57,154.53,6.3589]
[1723090832952,6.4708,154.54,154.51,15.7883]
[1723090833161,20.34,154.53,154.49,6.5059]
[1723090833369,20.0,154.53,154.49,6.5059]
[1723090833978,0.34,154.52,154.49,6.5059]
[1723090834978,20.0,154.53,154.49,6.5059]
[1723090835357,28.59,154.52,154.47,16.1813]
[1723090835684,34.7234,154.48,154.43,15.3556]
[1723090835865,6.6437,154.47,154.43,15.3556]
[1723090836053,54.8941,154.46,154.4,6.1952]
[1723090836253,54.8941,154.46,154.39,15.3556]
[1723090836254,28.25,154.44,154.39,15.3556]
[1723090836486,20.34,154.43,154.39,15.3556]
[1723090838665,20.34,154.43,154.36,6.1952]
[1723090838666,34.7259,154.42,154.36,6.1952]
[1723090838866,20.34,154.41,154.36,6.1952]
[1723090839869,20.34,154.41,154.35,15.8955]
[1723090840064,45.0,154.4,154.35,15.8955]
[1723090840281,20.34,154.39,154.35,15.8955]
[1723090840877,20.0,154.41,154.35,15.8955]
[1723090841368,389.1,154.45,154.36,29.54559137]
[1723090841589,389.1,154.45,154.37,6.0093]
[1723090842275,281.85,154.5,154.38,73.25]
[1723090842472,28.25,154.5,154.38,73.25]
[1723090842672,34.7227,154.5,154.38,28.25]
[1723090843187,2.6522484,154.5,154.39,15.648]
[1723090843360,2.6522484,154.5,154.39,60.648]
[1723090843561,417.35,154.51,154.39,15.648]
[1723090843766,389.1,154.51,154.39,15.648]
[1723090844189,6.4731,154.49,154.39,15.648]
[1723090844581,20.0,154.48,154.39,15.648]
[1723090844767,20.0,154.5,154.39,15.648]
[1723090845306,20.0,154.5,154.4,45.0]
[1723090845470,20.0,154.5,154.39,15.648]
[1723090846011,0.34,154.49,154.39,15.648]
[1723090847697,14.97615543,154.53,154.4,1.29500696]
[1723090847886,14.97615543,154.53,154.4,45.0]
[1723090848090,6.472,154.52,154.4,45.0]
[1723090848676,20.0,154.51,154.4,45.0]
[1723090849191,0.17,154.52,154.41,6.1911]
[1723090849383,0.17,154.51,154.41,6.1911]
[1723090849912,0.17,154.52,154.41,6.1911]
[1723090850205,20.17,154.52,154.42,17.44092133]
[1723090850409,0.17,154.52,154.42,61.1461]
[1723090850704,0.34,154.52,154.42,61.1461]
[1723090851001,20.34,154.52,154.42,61.1461]
[1723090851389,20.0,154.52,154.43,1.29476849]
[1723090851786,26.4704,154.55,154.43,1.29476849]
[1723090852413,253.6,154.56,154.43,1.29476849]
[1723090852586,253.6,154.56,154.44,22.926]
[1723090852785,253.6,154.56,154.45,46.29436694]
[1723090853110,391.69426754,154.57,154.46,0.17]
[1723090853412,391.69426754,154.57,154.46,1.46428314]
[1723090854081,20.0,154.56,154.46,1.46428314]
[1723090854284,2.59426754,154.57,154.46,1.46428314]
[1723090854496,22.35449362,154.58,154.46,1.46428314]
[1723090854699,0.17,154.57,154.46,1.46428314]
[1723090855407,0.34,154.57,154.46,1.46428314]
[1723090855616,65.34,154.57,154.44,22.586]
[1723090855794,36.3,154.56,154.44,22.586]
[1723090856001,6.4718,154.52,154.44,22.586]
[1723090856198,20.0,154.51,154.44,22.586]
[1723090856795,0.34,154.5,154.44,22.586]
[1723090857201,20.0,154.51,154.44,22.586]
[1723090857514,0.17,154.5,154.44,22.586]
[1723090857708,51.8122,154.51,154.44,22.586]
[1723090857915,20.0,154.5,154.44,22.586]
[1723090858622,26.8121,154.51,154.44,22.586]
[1723090858911,6.473,154.49,154.44,22.586]
[1723090859092,20.34,154.48,154.44,22.586]
[1723090859290,20.0,154.47,154.44,22.586]
[1723090859495,0.17,154.51,154.44,22.586]
[1723090859694,67.52100605,154.56,154.44,22.586]
[1723090859695,0.17,154.52,154.44,22.586]
[1723090859913,20.0,154.54,154.44,22.586]
[1723090860337,391.6814976,154.55,154.44,22.586]
[1723090860496,391.6814976,154.55,154.45,46.29467086]
[1723090860693,389.1,154.55,154.45,45.0]
[1723090860898,15.56980605,154.56,154.46,0.17]
[1723090861110,15.56980605,154.56,154.45,46.29394462]
[1723090861302,15.56980605,154.56,154.46,1.46436344]
[1723090861630,15.56980605,154.56,154.45,45.0]
[1723090862004,15.56980605,154.56,154.44,22.586]
[1723090862205,20.0,154.55,154.45,45.0]
[1723090865932,20.0,154.55,154.49,15.5598]
[1723090866134,20.0,154.55,154.5,1.29426127]
[1723090866331,20.0,154.6,154.5,1.29426127]
[1723090866505,26.4684,154.6,154.49,43.7698]
[1723090867232,26.4684,154.6,154.48,6.2302]
[1723090867233,9.08567209,154.63,154.52,22.3422]
[1723090868134,6.4674,154.62,154.52,22.3422]
[1723090868613,9.08557209,154.63,154.52,22.3422]
[1723090868819,51.6375,154.62,154.52,22.3422]
[1723090869004,20.17,154.61,154.52,22.3422]
[1723090869218,20.0,154.6,154.52,22.3422]
[1723090869408,0.17,154.61,154.52,22.3422]
[1723090869609,6.638,154.61,154.52,22.3422]
[1723090869804,20.0,154.6,154.52,22.3422]
[1723090870010,0.17,154.61,154.52,22.3422]
[1723090870311,45.34,154.61,154.52,22.3422]
[1723090870512,20.0,154.6,154.52,22.3422]
[1723090870818,45.17,154.59,154.52,22.3422]
[1723090871026,26.6391,154.58,154.52,22.3422]
[1723090871204,45.17,154.57,154.52,15.7901]
[1723090871409,0.17,154.56,154.48,22.5538]
[1723090871733,20.17,154.56,154.48,22.5538]
[1723090872109,45.17,154.55,154.48,22.5538]
[1723090872449,20.0,154.54,154.48,22.5538]
[1723090872735,20.0,154.56,154.48,22.5538]
[1723090872912,0.34,154.57,154.48,22.5538]
[1723090873326,20.34,154.57,154.48,22.5538]
[1723090873534,26.8096,154.57,154.48,22.5538]
[1723090874132,20.34,154.57,154.48,22.5538]
[1723090874542,45.0,154.56,154.48,22.5538]
[1723090874841,20.34,154.55,154.48,22.5538]
[1723090876144,6.4691,154.58,154.48,22.5538]
[1723090876445,398.22891771,154.59,154.48,22.5538]
[1723090877623,20.17,154.58,154.48,22.5538]
[1723090877819,20.17,154.58,154.49,1.29428029]
[1723090878016,20.17,154.58,154.48,22.5538]
[1723090878247,0.17,154.58,154.48,22.5538]
[1723090879027,0.34,154.58,154.48,22.5538]
[1723090879719,20.34,154.58,154.48,22.5538]
[1723090879914,389.1,154.59,154.49,15.5719]
[1723090880118,389.1,154.59,154.5,45.0]
[1723090880424,22.1118273,154.62,154.5,45.0]
[1723090880614,15.6443273,154.62,154.51,22.03970489]
[1723090880816,6.76825309,154.66,154.53,15.2319]
[1723090881513,26.23825309,154.66,154.53,15.2319]
[1723090881713,6.4678,154.62,154.53,15.2319]
[1723090881937,33.0847988,154.66,154.53,15.2319]
[1723090882240,46.31654571,154.65,154.53,15.2319]
[1723090882436,76.05,154.64,154.53,15.2319]
[1723090882618,6.4691,154.58,154.53,15.2319]
[1723090882815,65.17,154.57,154.53,15.2319]
[1723090883142,0.17,154.56,154.53,15.2319]
[1723090885222,20.0,154.57,154.53,15.2319]
[1723090885446,20.0,154.59,154.53,15.2319]
[1723090885623,20.0,154.61,154.53,15.2319]
[1723090886239,15.49598336,154.62,154.53,15.2319]
[1723090887622,21.96348336,154.62,154.53,15.2319]
[1723090887814,0.34,154.61,154.53,15.2319]
[1723090888019,20.34,154.61,154.53,15.2319]
[1723090888830,20.0,154.61,154.53,15.2319]
[1723090889426,20.0,154.61,154.54,51.3056]
[1723090889726,6.4657,154.67,154.56,16.1945]
[1723090890327,2.64617752,154.67,154.57,1.29322004]
[1723090890547,6.76811187,154.7,154.58,22.5349]
[1723090890754,13.23221187,154.7,154.58,22.5349]
[1723090891614,15.88860325,154.7,154.58,22.5349]
[1723090891827,15.88860325,154.7,154.59,28.16]
[1723090892245,0.17,154.69,154.59,28.16]
[1723090892653,20.17,154.69,154.59,28.16]
[1723090892948,6.6346,154.69,154.59,28.16]
[1723090893148,20.0,154.68,154.59,28.16]
[1723090893827,0.17,154.67,154.58,22.5349]
[1723090894025,6.4676,154.62,154.58,22.5349]
[1723090894337,20.17,154.61,154.58,22.5349]
[1723090894531,20.0,154.61,154.58,22.5349]
[1723090894734,14.11412389,154.69,154.58,22.5349]
[1723090894946,6.4662,154.65,154.58,22.5349]
[1723090895123,45.17,154.64,154.58,22.5349]
[1723090895318,45.34,154.63,154.58,22.5349]
[1723090895529,20.0,154.62,154.58,22.5349]
[1723090895749,0.34,154.63,154.58,22.5349]
[1723090896553,20.17,154.64,154.58,22.5349]
[1723090896747,20.0,154.63,154.58,22.5349]
[1723090896934,0.17,154.64,154.58,22.5349]
[1723090897951,0.34,154.64,154.58,22.5349]
[1723090899250,20.34,154.64,154.58,22.5349]
[1723090899652,20.0,154.64,154.58,22.5349]
[1723090899950,389.1,154.67,154.58,22.5349]
[1723090900363,389.1,154.67,154.58,23.82842196]
[1723090900364,391.71974022,154.67,154.58,23.82842196]
[1723090900523,391.71974022,154.67,154.58,22.5349]
[1723090901325,20.0,154.66,154.58,22.5349]
[1723090901524,20.0,154.67,154.58,22.5349]
[1723090902146,26.4653,154.67,154.58,22.5349]
[1723090902355,0.17,154.66,154.58,22.5349]
[1723090902538,45.34,154.66,154.58,22.5349]
[1723090902876,20.0,154.65,154.58,22.5349]
[1723090904330,20.34,154.66,154.58,22.5349]
[1723090904522,45.0,154.65,154.58,22.5349]
[1723090904726,6.4687,154.59,154.54,6.0333]
[1723090905029,26.6391,154.58,154.54,6.0333]
[1723090905232,6.6397,154.57,154.54,6.0333]
[1723090905440,0.17,154.56,154.54,6.0333]
[1723090905851,20.0,154.56,154.54,6.0333]
[1723090906430,39.47,154.62,154.5,6.2514]
[1723090906650,121.02,154.61,154.5,6.2514]
[1723090906865,121.02,154.61,154.41,6.2514]
[1723090906866,6.4711,154.54,154.41,6.2514]
[1723090907034,0.34,154.53,154.41,6.2514]
[1723090907235,20.34,154.53,154.41,6.2514]
[1723090907959,0.34,154.53,154.42,15.5289]
[1723090908459,20.0,154.57,154.42,15.5289]
[1723090908755,45.34,154.56,154.43,45.0]
[1723090908952,20.0,154.55,154.43,45.17]
[1723090909153,0.34,154.54,154.43,45.17]
[1723090911946,0.34,154.54,154.44,21.5042]
[1723090912149,20.0,154.55,154.46,15.1961]
[1723090912345,2.64606633,154.57,154.47,1.29435378]
[1723090912543,0.17,154.56,154.46,15.1961]
[1723090912739,0.17,154.57,154.46,15.1961]
[1723090913260,6.4712,154.53,154.46,15.1961]
[1723090913439,20.17,154.52,154.46,15.1961]
[1723090913968,20.0,154.52,154.46,15.1961]
[1723090914269,26.47,154.56,154.46,15.1961]
[1723090914470,0.34,154.55,154.46,15.1961]
[1723090914985,20.0,154.56,154.46,15.1961]
[1723090915268,26.8095,154.57,154.46,15.1961]
[1723090915561,0.34,154.57,154.46,15.1961]
[1723090915765,51.8091,154.58,154.47,6.0239]
[1723090916270,45.34,154.58,154.47,6.0239]
[1723090917455,2.60843195,154.6,154.48,16.1843]
[1723090917742,6.4682,154.61,154.49,45.0]
[1723090918767,45.34,154.6,154.49,45.0]
[1723090918977,20.0,154.59,154.5,23.81368138]
[1723090919266,0.17,154.6,154.51,45.0]
[1723090919565,20.0,154.62,154.52,1.29402882]
[1723090919769,20.0,154.62,154.52,15.9729]
[1723090920065,13.78472093,154.65,154.54,15.9729]
[1723090920264,6.4682,154.61,154.54,15.9729]
[1723090920565,6.4684,154.6,154.54,15.9729]
[1723090921260,20.0,154.59,154.54,15.9729]
[1723090921463,0.17,154.61,154.54,15.9729]
[1723090921672,71.8076,154.62,154.54,15.9729]
[1723090921869,65.34,154.62,154.54,15.9729]
[1723090922365,0.17,154.62,154.54,16.54476273]
[1723090922567,22.85269678,154.65,154.54,15.9729]
[1723090922771,16.38609678,154.65,154.54,15.9729]
[1723090923475,6.467,154.63,154.54,15.9729]
[1723090923846,20.0,154.62,154.54,15.9729]
[1723090924061,20.0,154.63,154.54,15.9729]
[1723090924265,0.17,154.64,154.54,44.1529]
[1723090924478,44.56609678,154.65,154.56,28.18]
[1723090924479,13.78472093,154.65,154.56,28.18]
[1723090924644,13.78472093,154.65,154.58,15.2329]
[1723090924847,9.10409502,154.68,154.58,15.2329]
[1723090925049,6.4674,154.62,154.58,15.2329]
[1723090925566,28.18,154.63,154.58,15.2329]
[1723090925950,6.4669,154.64,154.58,15.2329]
[1723090925951,28.18,154.65,154.58,15.2329]
[1723090926151,20.17,154.64,154.58,15.2329]
[1723090926352,0.17,154.63,154.58,15.2329]
[1723090928649,28.18,154.59,154.5,21.1431]
[1723090928970,20.0,154.58,154.5,21.1431]
[1723090929945,20.0,154.6,154.53,28.18]
[1723090930154,389.1,154.63,154.54,6.4828]
[1723090930349,20.0,154.62,154.54,6.4828]
[1723090932457,20.0,154.62,154.55,43.8028]
[1723090932760,389.1,154.63,154.55,43.8028]
[1723090932948,389.1,154.63,154.57,28.18]
[1723090933148,9.14208407,154.68,154.57,28.18]
[1723090933476,9.14208407,154.68,154.58,1.29311095]
[1723090933676,2.67708407,154.68,154.59,50.1572]
[1723090933975,6.4643,154.7,154.6,1.29294366]
[1723090934173,389.1,154.69,154.59,50.1572]
[1723090934477,417.28,154.69,154.59,21.9772]
[1723090935048,20.0,154.68,154.59,21.9772]
[1723090935399,34.6462,154.65,154.59,21.9772]
[1723090935576,28.18,154.63,154.55,22.6818]
[1723090935869,65.34,154.64,154.55,14.95068528]
[1723090935870,28.18,154.61,154.55,14.95068528]
[1723090936051,6.4688,154.59,154.55,14.95068528]
[1723090936250,20.0,154.58,154.55,14.95068528]
[1723090936778,20.0,154.6,154.55,14.95068528]
[1723090937478,20.0,154.62,154.55,14.95068528]
[1723090937653,0.34,154.61,154.55,14.95068528]
[1723090938768,20.0,154.63,154.55,14.95068528]
[1723090938953,0.34,154.62,154.56,6.5236]
[1723090939155,6.4691,154.58,154.55,14.95068528]
[1723090939462,0.34,154.57,154.52,6.5236]
[1723090939669,20.0,154.58,154.52,6.5236]
[1723090939875,0.34,154.57,154.52,6.5236]
[1723090940581,28.52,154.57,154.46,6.3091]
[1723090940773,65.0,154.56,154.46,6.3091]
[1723090940967,28.52,154.55,154.46,6.3091]
[1723090941172,20.0,154.54,154.46,6.3091]
[1723090942173,0.34,154.53,154.46,6.3091]
[1723090942379,6.4716,154.52,154.46,6.3091]
[1723090942686,20.34,154.51,154.43,16.2088]
[1723090942870,65.34,154.51,154.43,16.2088]
[1723090943263,6.4741,154.46,154.37,22.0239]
[1723090943460,6.475,154.44,154.37,22.0239]
[1723090943796,20.0,154.43,154.37,22.0239]
[1723090944279,0.17,154.45,154.37,22.0239]
[1723090944582,20.0,154.47,154.37,22.0239]
[1723090944783,26.473,154.49,154.37,22.0239]
[1723090944961,45.34,154.48,154.37,22.0239]
[1723090945161,20.0,154.47,154.37,22.0239]
[1723090945986,0.34,154.48,154.38,45.0]
[1723090946286,0.34,154.49,154.38,45.0]
[1723090946587,20.0,154.5,154.39,0.34]
[1723090946786,6.4722,154.51,154.38,45.0]
[1723090946955,20.0,154.5,154.38,45.0]
[1723090947792,0.34,154.49,154.38,45.0]
[1723090947967,0.17,154.5,154.39,0.17]
[1723090948162,20.0,154.51,154.39,0.34]
[1723090948659,15.06445415,154.53,154.4,59.3983915]
[1723090948865,13.0446,154.58,154.44,21.7835]
[1723090949057,13.0446,154.58,154.45,1.29451915]
[1723090949366,6.4726,154.5,154.44,21.7835]
[1723090949563,6.472,154.52,154.44,21.7835]
[1723090949884,6.4712,154.53,154.44,21.7835]
[1723090950089,17.29297201,154.58,154.45,1.29479537]
[1723090950283,14.66377659,154.58,154.45,1.29479537]
[1723090950463,14.66377659,154.58,154.44,58.1035]
[1723090950666,14.66377659,154.58,154.45,45.17]
[1723090951172,14.66377659,154.58,154.46,1.29444064]
[1723090951882,6.4688,154.59,154.46,1.29444064]
[1723090952267,13.23591819,154.62,154.47,58.7305]
[1723090952468,13.0424,154.64,154.48,46.2940678]
[1723090952669,6.4676,154.62,154.49,0.17]
[1723090952873,6.5755,154.64,154.48,46.2940678]
[1723090953177,6.5755,154.64,154.48,45.0]
[1723090953562,6.4691,154.59,154.48,45.0]
[1723090953761,45.34,154.58,154.47,22.2405]
[1723090953968,20.0,154.57,154.47,22.2405]
[1723090954283,20.0,154.57,154.48,45.34]
[1723090954583,20.0,154.57,154.48,45.0]
[1723090954776,20.0,154.59,154.49,1.29414824]
[1723090955174,0.34,154.6,154.49,1.29414824]
[1723090955374,45.34,154.6,154.48,45.0]
[1723090955577,20.0,154.59,154.49,1.2941176]
[1723090956081,20.0,154.59,154.48,45.17]
[1723090956282,0.34,154.6,154.49,0.34]
[1723090956474,0.34,154.6,154.48,45.0]
[1723090956664,20.34,154.6,154.48,45.0]
[1723090957065,20.34,154.6,154.49,1.29417699]
[1723090957273,0.34,154.6,154.49,1.29417699]
[1723090958284,0.34,154.6,154.5,16.5499]
[1723090958486,20.0,154.61,154.51,51.6034]
[1723090958487,0.17,154.61,154.51,51.6034]
[1723090958686,45.34,154.62,154.51,6.6034]
[1723090959293,20.0,154.61,154.51,6.6034]
[1723090959681,20.34,154.62,154.51,6.6034]
[1723090959865,13.23325284,154.66,154.51,6.6034]
[1723090960068,6.4662,154.66,154.53,16.026]
[1723090960275,6.4662,154.66,154.54,45.0]
[1723090960483,28.56067807,154.68,154.54,45.0]
[1723090960804,24.71317887,154.68,154.54,45.0]
[1723090961083,6.4655,154.67,154.56,6.2123]
[1723090961584,6.4659,154.66,154.56,6.2123]
[1723090962260,65.34,154.65,154.56,6.2123]
[1723090964305,20.34,154.65,154.56,6.2123]
[1723090964586,0.34,154.65,154.56,6.2123]
[1723090964792,45.34,154.66,154.56,6.2123]
[1723090964985,20.0,154.65,154.56,6.2123]
[1723090965187,0.34,154.64,154.56,6.2123]
[1723090965575,20.0,154.65,154.56,6.2123]
[1723090965884,20.0,154.67,154.56,34.3823]
[1723090966087,0.17,154.66,154.56,34.3823]
[1723090966297,0.17,154.66,154.57,15.44]
[1723090967588,0.34,154.66,154.57,15.44]
[1723090968085,18.15947887,154.68,154.58,28.17]
[1723090968292,0.34,154.67,154.58,28.17]
[1723090968590,6.467,154.64,154.57,15.44]
[1723090968792,51.807,154.63,154.57,15.44]
[1723090969790,20.0,154.62,154.57,15.44]
[1723090969981,0.17,154.61,154.57,15.44]
[1723090970177,20.0,154.62,154.57,15.44]
[1723090970380,22.62165138,154.65,154.57,15.44]
[1723090970679,45.34,154.64,154.57,15.44]
[1723090970884,20.0,154.63,154.57,15.44]
[1723090972201,0.34,154.62,154.57,15.44]
[1723090972370,20.0,154.63,154.57,15.44]
[1723090972571,26.4663,154.65,154.57,15.44]
[1723090972879,45.17,154.64,154.57,15.44]
[1723090973079,15.31938612,154.71,154.59,28.17]
[1723090973269,2.67944066,154.76,154.65,28.17]
[1723090973468,6.462,154.75,154.65,28.17]
[1723090973865,6.462,154.75,154.63,28.17]
[1723090974069,28.17,154.74,154.62,22.2341]
[1723090974269,28.17,154.72,154.62,22.2341]
[1723090974907,0.17,154.71,154.62,22.2341]
[1723090975971,0.34,154.71,154.62,22.2341]
[1723090976887,45.34,154.72,154.62,22.2341]
[1723090977087,20.0,154.71,154.62,22.2341]
[1723090977794,0.17,154.7,154.62,22.2341]
[1723090978101,19.67,154.71,154.62,22.2341]
[1723090978288,0.17,154.7,154.62,22.2341]
[1723090980273,45.34,154.7,154.62,22.2341]
[1723090980474,6.4646,154.69,154.62,15.9555]
[1723090980777,65.34,154.68,154.62,15.9555]
[1723090980983,71.805,154.68,154.62,15.9555]
[1723090981183,6.4654,154.67,154.58,22.4554]
[1723090981377,20.17,154.66,154.58,22.4554]
[1723090981681,65.17,154.68,154.58,22.4554]
[1723090981886,0.17,154.67,154.58,22.4554]
[1723090982297,0.17,154.68,154.59,1.29355548]
[1723090982497,0.34,154.68,154.58,22.4554]
[1723090983194,6.8049,154.68,154.58,22.4554]
[1723090983400,20.0,154.67,154.58,22.4554]
[1723090983710,0.34,154.68,154.58,22.4554]
[1723090984006,51.8049,154.68,154.58,22.4554]
[1723090984183,20.0,154.67,154.58,22.4554]
[1723090985596,26.4654,154.67,154.58,22.4554]
[1723090985793,45.34,154.66,154.58,22.4554]
[1723090986184,26.4663,154.65,154.58,22.4554]
[1723090986388,0.34,154.64,154.58,22.4554]
[1723090986593,6.8066,154.64,154.58,22.4554]
[1723090986902,26.4671,154.63,154.58,22.4554]
[1723090987405,20.0,154.63,154.58,22.4554]
[1723090988398,2.66609185,154.66,154.58,22.4554]
[1723090988595,389.1,154.68,154.58,22.4554]
[1723090988793,395.565,154.68,154.58,22.4554]
[1723090989909,398.1938124,154.68,154.58,22.4554]
[1723090990290,26.4654,154.67,154.58,22.4554]
[1723090990492,0.17,154.66,154.58,22.4554]
[1723090990816,20.0,154.67,154.58,22.4554]
[1723090990992,21.01984377,154.73,154.59,46.46340258]
[1723090991194,14.55694377,154.73,154.59,46.46340258]
[1723090991414,6.4645,154.69,154.58,22.4554]
[1723090991620,6.4641,154.7,154.58,22.4554]
[1723090992291,65.17,154.69,154.58,22.4554]
[1723090992614,0.17,154.68,154.58,22.4554]
[1723090992791,20.17,154.69,154.59,1.29349734]
[1723090992992,0.17,154.68,154.59,1.29349734]
[1723090993513,20.17,154.69,154.59,1.29349734]
[1723090993810,20.17,154.69,154.59,46.29349734]
[1723090994117,0.17,154.69,154.59,46.29349734]
[1723090994504,20.17,154.69,154.59,46.29349734]
[1723090994710,20.17,154.69,154.59,45.0]
[1723090997307,6.4658,154.66,154.58,22.4554]
[1723090997707,20.34,154.65,154.58,22.4554]
[1723090997903,6.4666,154.64,154.58,22.4554]
[1723090998113,65.34,154.65,154.58,22.4554]
[1723090998497,6.4667,154.64,154.58,22.4554]
[1723090998827,20.34,154.63,154.58,22.4554]
[1723090999322,20.0,154.63,154.58,22.4554]
[1723090999513,20.0,154.66,154.58,22.4554]
[1723090999708,26.466,154.66,154.58,22.4554]
[1723091000016,0.17,154.65,154.58,22.4554]
[1723091000214,20.0,154.66,154.58,22.4554]
[1723091000619,0.17,154.65,154.58,22.4554]
[1723091001311,0.34,154.65,154.58,22.4554]
[1723091003219,45.34,154.65,154.58,22.4554]
[1723091003418,6.4671,154.63,154.58,15.9938]
[1723091003722,20.17,154.62,154.58,15.9938]
[1723091004024,34.6386,154.6,154.48,16.2708]
[1723091004234,6.4695,154.58,154.48,16.2708]
[1723091004408,20.34,154.57,154.48,16.2708]
[1723091005104,0.34,154.57,154.48,16.2708]
[1723091005809,45.34,154.58,154.48,16.2708]
[1723091006009,20.0,154.57,154.48,16.2708]
[1723091006815,20.0,154.57,154.51,28.17]
[1723091007010,20.0,154.6,154.51,28.17]
[1723091007210,45.17,154.59,154.51,28.17]
[1723091007422,0.17,154.58,154.51,28.17]
[1723091007732,20.17,154.58,154.51,28.17]
[1723091008102,20.17,154.58,154.5,6.0348]
[1723091008308,45.17,154.57,154.5,6.0348]
[1723091008634,0.17,154.56,154.5,6.0348]
[1723091008931,20.17,154.56,154.5,6.0348]
[1723091009118,20.0,154.56,154.5,6.0348]
[1723091009831,20.17,154.57,154.5,6.0348]
[1723091010042,20.0,154.57,154.5,6.0348]
[1723091010934,20.0,154.57,154.5,34.2048]
[1723091011514,20.0,154.59,154.5,34.2048]
[1723091011813,0.34,154.58,154.5,34.2048]
[1723091012011,20.0,154.59,154.5,34.2048]